[Event "*** Titled Tuesday Blitz"]
[Site "Chess.com"]
[Date "2020.11.24"]
[Round "2"]
[White "goldenpuppy"]
[Black "XDPS"]
[Result "0-1"]
[WhiteElo "2383"]
[BlackElo "2714"]
[TimeControl "180+1"]
[EndTime "10:33:58 PST"]
[Termination "XDPS won by resignation"]

1. e4 {[%clk 0:03:00.9]} 1... c5 {[%clk 0:02:59.2]} 2. Nf3 {[%clk 0:02:58.6]}
2... e6 {[%clk 0:02:59.7]} 3. d4 {[%clk 0:02:54.7]} 3... cxd4 {[%clk 0:03:00.6]}
4. Nxd4 {[%clk 0:02:55]} 4... a6 {[%clk 0:03:01.1]} 5. c4 {[%clk 0:02:55.1]}
5... d6 {[%clk 0:03:00.5]} 6. Nc3 {[%clk 0:02:55.3]} 6... Qc7 {[%clk 0:03:01]}
7. Be3 {[%clk 0:02:55.2]} 7... Be7 {[%clk 0:03:01.7]} 8. Rc1 {[%clk 0:02:55.5]}
8... b6 {[%clk 0:03:02.3]} 9. Be2 {[%clk 0:02:55.9]} 9... Bb7 {[%clk 0:03:02.8]}
10. O-O {[%clk 0:02:56]} 10... Nf6 {[%clk 0:03:03.1]} 11. f3 {[%clk 0:02:56.6]}
11... O-O {[%clk 0:03:03.5]} 12. Qd2 {[%clk 0:02:56.7]} 12... Nbd7 {[%clk
0:03:04.1]} 13. Rfd1 {[%clk 0:02:57]} 13... Rac8 {[%clk 0:03:04]} 14. b3 {[%clk
0:02:57.2]} 14... Qb8 {[%clk 0:03:04.5]} 15. Bf1 {[%clk 0:02:57.5]} 15... Bd8
{[%clk 0:03:05.1]} 16. g4 {[%clk 0:02:56.1]} 16... Bc7 {[%clk 0:02:42.8]} 17. g5
{[%clk 0:02:55.3]} 17... Nh5 {[%clk 0:02:42.7]} 18. Bh3 {[%clk 0:02:45.8]} 18...
g6 {[%clk 0:02:40.5]} 19. Bg4 {[%clk 0:02:43.7]} 19... Ng7 {[%clk 0:02:38]} 20.
h4 {[%clk 0:02:43.4]} 20... Rce8 {[%clk 0:02:37.9]} 21. Qg2 {[%clk 0:02:39.7]}
21... f5 {[%clk 0:02:32.7]} 22. gxf6 {[%clk 0:02:38.7]} 22... Nxf6 {[%clk
0:02:32.6]} 23. Bh3 {[%clk 0:02:30.4]} 23... d5 {[%clk 0:02:27.1]} 24. Bh6
{[%clk 0:02:15.8]} 24... dxe4 {[%clk 0:02:15.3]} 25. fxe4 {[%clk 0:02:15.3]}
25... Nfh5 {[%clk 0:02:03.6]} 26. Bxg7 {[%clk 0:02:03.2]} 26... Nxg7 {[%clk
0:02:03.3]} 27. Rf1 {[%clk 0:02:03.3]} 27... Rxf1+ {[%clk 0:02:01.5]} 28. Rxf1
{[%clk 0:02:03]} 28... Be5 {[%clk 0:02:02]} 29. Nce2 {[%clk 0:02:01.9]} 29...
Qd6 {[%clk 0:01:58.6]} 30. Nc2 {[%clk 0:01:47.1]} 30... Qd3 {[%clk 0:01:19.2]}
31. Nc1 {[%clk 0:01:46.3]} 31... Qxe4 {[%clk 0:01:14.2]} 32. Qxe4 {[%clk
0:01:45.1]} 32... Bxe4 {[%clk 0:01:15.1]} 33. Re1 {[%clk 0:01:45.2]} 33... Bxc2
{[%clk 0:01:14.4]} 34. Rxe5 {[%clk 0:01:44.4]} 34... Kf7 {[%clk 0:01:13.3]} 35.
Ne2 {[%clk 0:01:43.5]} 35... Kf6 {[%clk 0:01:10.6]} 36. Re3 {[%clk 0:01:40.9]}
36... Bf5 {[%clk 0:01:10.9]} 37. Bg2 {[%clk 0:01:39.3]} 37... Rd8 {[%clk
0:01:10.9]} 38. b4 {[%clk 0:01:36.7]} 38... Rd2 {[%clk 0:01:06.5]} 39. c5 {[%clk
0:01:35.7]} 39... bxc5 {[%clk 0:01:06.8]} 40. bxc5 {[%clk 0:01:36.5]} 40... Rxa2
{[%clk 0:01:06.3]} 41. c6 {[%clk 0:01:36.6]} 41... Rc2 {[%clk 0:01:04.6]} 42.
Nd4 {[%clk 0:01:35]} 42... Rc1+ {[%clk 0:01:04.6]} 43. Kf2 {[%clk 0:01:34]}
43... e5 {[%clk 0:01:05.1]} 44. Ne2 {[%clk 0:01:27.8]} 44... Rc2 {[%clk
0:01:00.3]} 45. Ra3 {[%clk 0:01:19.1]} 45... Ne6 {[%clk 0:00:50]} 46. Ke3 {[%clk
0:01:09.9]} 46... Nf4 {[%clk 0:00:37.3]} 47. Bf3 {[%clk 0:00:40.3]} 47... Nxe2
{[%clk 0:00:33.9]} 48. Bxe2 {[%clk 0:00:41.2]} 48... Rxc6 {[%clk 0:00:33.8]} 49.
Bxa6 {[%clk 0:00:40.7]} 49... Rd6 {[%clk 0:00:30.9]} 50. Be2 {[%clk 0:00:39.6]}
50... Rd4 {[%clk 0:00:27.7]} 51. Ra7 {[%clk 0:00:39.6]} 51... Rxh4 {[%clk
0:00:26.2]} 52. Ra6+ {[%clk 0:00:40.2]} 52... Kg5 {[%clk 0:00:26.1]} 53. Ra7
{[%clk 0:00:40.7]} 53... e4 {[%clk 0:00:26]} 54. Ra5 {[%clk 0:00:39.9]} 54...
Rh3+ {[%clk 0:00:26.2]} 55. Kf2 {[%clk 0:00:40.2]} 55... Kf4 {[%clk 0:00:26.8]}
56. Ra7 {[%clk 0:00:39.7]} 56... h5 {[%clk 0:00:26.5]} 57. Ra5 {[%clk
0:00:38.2]} 57... Rh2+ {[%clk 0:00:26.3]} 58. Ke1 {[%clk 0:00:35.8]} 58... h4
{[%clk 0:00:26.7]} 59. Ra3 {[%clk 0:00:35]} 59... h3 {[%clk 0:00:26.4]} 60. Bf1
{[%clk 0:00:35.2]} 60... g5 {[%clk 0:00:25.6]} 61. Ra1 {[%clk 0:00:30.6]} 61...
g4 {[%clk 0:00:25.5]} 62. Ra3 {[%clk 0:00:30.3]} 62... g3 {[%clk 0:00:25.3]} 63.
Ra1 {[%clk 0:00:27.7]} 63... Rb2 {[%clk 0:00:24.6]} 64. Ra5 {[%clk 0:00:23.6]}
64... g2 {[%clk 0:00:23.5]} 0-1

[Event "*** Titled Tuesday Blitz"]
[Site "Chess.com"]
[Date "2020.11.24"]
[Round "2"]
[White "cstevens1"]
[Black "Oleksandr_Bortnyk"]
[Result "1/2-1/2"]
[WhiteElo "2562"]
[BlackElo "2904"]
[TimeControl "180+1"]
[EndTime "10:33:59 PST"]
[Termination "Game drawn by repetition"]

1. e4 {[%clk 0:03:00.9]} 1... c5 {[%clk 0:02:58.4]} 2. Nf3 {[%clk 0:03:01.2]}
2... d6 {[%clk 0:02:58.4]} 3. d4 {[%clk 0:03:01.8]} 3... cxd4 {[%clk 0:02:59.3]}
4. Nxd4 {[%clk 0:03:02.4]} 4... Nf6 {[%clk 0:03:00.2]} 5. f3 {[%clk 0:03:02.7]}
5... g6 {[%clk 0:02:58.8]} 6. c4 {[%clk 0:03:03.1]} 6... Bg7 {[%clk 0:02:59.4]}
7. Nc3 {[%clk 0:03:03.7]} 7... O-O {[%clk 0:03:00]} 8. Be3 {[%clk 0:03:04.3]}
8... Nc6 {[%clk 0:03:00.2]} 9. Qd2 {[%clk 0:03:04.9]} 9... Bd7 {[%clk
0:03:00.1]} 10. Be2 {[%clk 0:03:04.9]} 10... Nxd4 {[%clk 0:02:54.5]} 11. Bxd4
{[%clk 0:03:04.7]} 11... a6 {[%clk 0:02:55]} 12. Be3 {[%clk 0:03:04.8]} 12...
Qa5 {[%clk 0:02:53.3]} 13. Rc1 {[%clk 0:03:04.7]} 13... Rac8 {[%clk 0:02:53.4]}
14. b3 {[%clk 0:03:05.2]} 14... b5 {[%clk 0:02:50.3]} 15. Nd5 {[%clk 0:03:05.4]}
15... Qxd2+ {[%clk 0:02:49.7]} 16. Kxd2 {[%clk 0:03:06.3]} 16... Nxd5 {[%clk
0:02:48.4]} 17. cxd5 {[%clk 0:03:07.2]} 17... Bb2 {[%clk 0:02:45.2]} 18. Rxc8
{[%clk 0:03:07.4]} 18... Rxc8 {[%clk 0:02:46.1]} 19. Rb1 {[%clk 0:03:07.2]}
19... Bc3+ {[%clk 0:02:38.1]} 20. Kd1 {[%clk 0:03:07.4]} 20... f5 {[%clk
0:02:34.2]} 21. Bd3 {[%clk 0:03:07.5]} 21... fxe4 {[%clk 0:02:32.3]} 22. Bxe4
{[%clk 0:03:08.4]} 22... Kf7 {[%clk 0:02:29.1]} 23. Rc1 {[%clk 0:03:08.1]} 23...
Be5 {[%clk 0:02:17.9]} 24. Rxc8 {[%clk 0:03:05.8]} 24... Bxc8 {[%clk 0:02:18.8]}
25. f4 {[%clk 0:03:04.1]} 25... Bf6 {[%clk 0:02:08.5]} 26. Kc2 {[%clk
0:03:03.1]} 26... Bb7 {[%clk 0:01:42.7]} 27. Kd3 {[%clk 0:03:02.6]} 27... Bb2
{[%clk 0:01:07.9]} 28. Bd4 {[%clk 0:03:01.5]} 28... Bxd4 {[%clk 0:01:03.1]} 29.
Kxd4 {[%clk 0:03:01.6]} 29... a5 {[%clk 0:01:03.8]} 30. a3 {[%clk 0:03:00.8]}
30... Bc8 {[%clk 0:00:59.7]} 31. b4 {[%clk 0:03:00.3]} 31... axb4 {[%clk
0:00:59.6]} 32. axb4 {[%clk 0:03:01.2]} 32... Bd7 {[%clk 0:01:00.5]} 33. g3
{[%clk 0:03:00.2]} 33... Kf6 {[%clk 0:01:00.7]} 34. Bd3 {[%clk 0:02:59.7]} 34...
h6 {[%clk 0:01:00.9]} 35. h4 {[%clk 0:02:54.4]} 35... Kg7 {[%clk 0:00:48.8]} 36.
Be2 {[%clk 0:02:53.1]} 36... Kf6 {[%clk 0:00:45.6]} 37. Bd3 {[%clk 0:02:51.1]}
37... Kf7 {[%clk 0:00:45.2]} 38. Be2 {[%clk 0:02:49.7]} 38... Kg7 {[%clk
0:00:44.4]} 39. Ke3 {[%clk 0:02:34]} 39... Kf6 {[%clk 0:00:38.4]} 40. Bd3 {[%clk
0:02:30.9]} 40... g5 {[%clk 0:00:35.3]} 41. fxg5+ {[%clk 0:02:30.4]} 41... hxg5
{[%clk 0:00:36.2]} 42. Kd4 {[%clk 0:02:20.5]} 42... Be8 {[%clk 0:00:31.8]} 43.
Be4 {[%clk 0:01:30.5]} 43... Bh5 {[%clk 0:00:22.2]} 44. Bd3 {[%clk 0:01:28.9]}
44... Be8 {[%clk 0:00:21.9]} 45. Be4 {[%clk 0:01:28.8]} 45... gxh4 {[%clk
0:00:20.6]} 46. gxh4 {[%clk 0:01:28.4]} 46... Kg7 {[%clk 0:00:21.5]} 47. Ke3
{[%clk 0:01:26.5]} 47... Kh6 {[%clk 0:00:21]} 48. Kf4 {[%clk 0:01:25.9]} 48...
Kh5 {[%clk 0:00:21.3]} 49. Kg3 {[%clk 0:01:26.4]} 49... Bd7 {[%clk 0:00:21.9]}
50. Bf3+ {[%clk 0:01:24.4]} 50... Kg6 {[%clk 0:00:22.2]} 51. Kf4 {[%clk
0:01:24.7]} 51... Kf6 {[%clk 0:00:05]} 52. h5 {[%clk 0:01:13.1]} 52... Be8
{[%clk 0:00:05.3]} 53. h6 {[%clk 0:01:11.1]} 53... Bf7 {[%clk 0:00:02]} 54. Be4
{[%clk 0:01:06.9]} 54... Be8 {[%clk 0:00:02.1]} 55. Bd3 {[%clk 0:01:03.1]} 55...
Bd7 {[%clk 0:00:01.9]} 56. h7 {[%clk 0:00:54.7]} 56... Kg7 {[%clk 0:00:02.8]}
57. Kg5 {[%clk 0:00:54.9]} 57... Be8 {[%clk 0:00:02.6]} 58. Be4 {[%clk
0:00:50.5]} 58... Bf7 {[%clk 0:00:02.9]} 59. Kf4 {[%clk 0:00:40.5]} 59... Be8
{[%clk 0:00:03.4]} 60. Kg5 {[%clk 0:00:40.4]} 60... Bf7 {[%clk 0:00:03.7]} 61.
Kf4 {[%clk 0:00:39.4]} 61... Be8 {[%clk 0:00:04.2]} 62. Kg5 {[%clk 0:00:36.5]}
1/2-1/2

[Event "*** Titled Tuesday Blitz"]
[Site "Chess.com"]
[Date "2020.11.24"]
[Round "2"]
[White "Ladislav1969"]
[Black "xamax2000"]
[Result "0-1"]
[WhiteElo "2339"]
[BlackElo "2633"]
[TimeControl "180+1"]
[EndTime "10:33:59 PST"]
[Termination "xamax2000 won on time"]

1. e4 {[%clk 0:03:00.9]} 1... c6 {[%clk 0:02:59.3]} 2. d4 {[%clk 0:03:00.6]}
2... d5 {[%clk 0:02:59.6]} 3. e5 {[%clk 0:03:01.3]} 3... Bf5 {[%clk 0:02:58.6]}
4. Nd2 {[%clk 0:03:01.9]} 4... e6 {[%clk 0:02:57.7]} 5. Nb3 {[%clk 0:03:01.9]}
5... Nd7 {[%clk 0:02:58.3]} 6. Nf3 {[%clk 0:03:02]} 6... a6 {[%clk 0:02:58.7]}
7. Be3 {[%clk 0:02:59.8]} 7... Rc8 {[%clk 0:02:57.8]} 8. Bd3 {[%clk 0:02:54.8]}
8... Bxd3 {[%clk 0:02:11]} 9. cxd3 {[%clk 0:02:55.7]} 9... Ne7 {[%clk
0:02:11.5]} 10. O-O {[%clk 0:02:48.4]} 10... Nf5 {[%clk 0:02:11.5]} 11. Rc1
{[%clk 0:02:48.9]} 11... Be7 {[%clk 0:02:10.9]} 12. Qd2 {[%clk 0:02:39.5]} 12...
O-O {[%clk 0:02:10.1]} 13. Bg5 {[%clk 0:02:39.5]} 13... Bxg5 {[%clk 0:01:55.1]}
14. Nxg5 {[%clk 0:02:28.5]} 14... Qe7 {[%clk 0:01:21.3]} 15. Rfe1 {[%clk
0:02:24.3]} 15... c5 {[%clk 0:01:15]} 16. dxc5 {[%clk 0:01:55.3]} 16... Nxc5
{[%clk 0:01:14.8]} 17. Nxc5 {[%clk 0:01:49.6]} 17... Rxc5 {[%clk 0:01:14.2]} 18.
Nf3 {[%clk 0:01:48.7]} 18... Rfc8 {[%clk 0:01:11.3]} 19. d4 {[%clk 0:01:48.8]}
19... R5c7 {[%clk 0:00:49.9]} 20. g3 {[%clk 0:01:45]} 20... Qd7 {[%clk
0:00:42.3]} 21. Kg2 {[%clk 0:01:43]} 21... h6 {[%clk 0:00:41.5]} 22. h4 {[%clk
0:01:32.3]} 22... Qa4 {[%clk 0:00:37.6]} 23. b3 {[%clk 0:01:17.4]} 23... Qa3
{[%clk 0:00:19.2]} 24. Rxc7 {[%clk 0:01:16.9]} 24... Rxc7 {[%clk 0:00:20.1]} 25.
Re2 {[%clk 0:01:17.5]} 25... Qc1 {[%clk 0:00:19.3]} 26. Qxc1 {[%clk 0:01:09.3]}
26... Rxc1 {[%clk 0:00:20.2]} 27. g4 {[%clk 0:01:07.8]} 27... Ne7 {[%clk
0:00:20]} 28. Rd2 {[%clk 0:00:45.8]} 28... Nc6 {[%clk 0:00:19.2]} 29. Ng1 {[%clk
0:00:34.6]} 29... Kf8 {[%clk 0:00:13]} 30. Ne2 {[%clk 0:00:34.5]} 30... Ra1
{[%clk 0:00:12]} 31. Nc3 {[%clk 0:00:31.2]} 31... Ke7 {[%clk 0:00:10]} 32. Kf3
{[%clk 0:00:28.9]} 32... Rh1 {[%clk 0:00:09.3]} 33. h5 {[%clk 0:00:28.3]} 33...
g6 {[%clk 0:00:07.7]} 34. hxg6 {[%clk 0:00:27]} 34... fxg6 {[%clk 0:00:08.6]}
35. Ke2 {[%clk 0:00:22.5]} 35... Rh4 {[%clk 0:00:07.9]} 36. Na4 {[%clk
0:00:13.2]} 36... Rxg4 {[%clk 0:00:07.6]} 37. Ke3 {[%clk 0:00:08.3]} 37... Re4+
{[%clk 0:00:07.3]} 38. Kf3 {[%clk 0:00:07.5]} 38... Rxd4 {[%clk 0:00:07.3]} 39.
Rc2 {[%clk 0:00:06.3]} 39... Nxe5+ {[%clk 0:00:07.1]} 40. Kg3 {[%clk 0:00:05.6]}
40... Rg4+ {[%clk 0:00:07]} 41. Kh3 {[%clk 0:00:05.1]} 41... Rf4 {[%clk
0:00:04.7]} 42. Nc5 {[%clk 0:00:04.7]} 42... Rb4 {[%clk 0:00:02.8]} 43. a3
{[%clk 0:00:03.1]} 43... Rb5 {[%clk 0:00:02.7]} 44. b4 {[%clk 0:00:02.8]} 44...
a5 {[%clk 0:00:03.2]} 0-1

[Event "*** Titled Tuesday Blitz"]
[Site "Chess.com"]
[Date "2020.11.24"]
[Round "2"]
[White "ukchessbomber"]
[Black "Revnov"]
[Result "0-1"]
[WhiteElo "2340"]
[BlackElo "2658"]
[TimeControl "180+1"]
[EndTime "10:33:59 PST"]
[Termination "Revnov won by resignation"]

1. d4 {[%clk 0:03:00.9]} 1... e6 {[%clk 0:02:59.5]} 2. c4 {[%clk 0:03:01.3]}
2... Bb4+ {[%clk 0:02:58.6]} 3. Nc3 {[%clk 0:02:59.9]} 3... a5 {[%clk
0:02:58.9]} 4. e4 {[%clk 0:02:58.6]} 4... d5 {[%clk 0:02:57.8]} 5. a3 {[%clk
0:02:51.3]} 5... Bxc3+ {[%clk 0:02:57]} 6. bxc3 {[%clk 0:02:52.2]} 6... dxe4
{[%clk 0:02:50.8]} 7. Qg4 {[%clk 0:02:52.4]} 7... Kf8 {[%clk 0:02:48.3]} 8. Qxe4
{[%clk 0:02:44.2]} 8... Nf6 {[%clk 0:02:48.7]} 9. Qh4 {[%clk 0:02:43.4]} 9... b6
{[%clk 0:02:33.6]} 10. Nf3 {[%clk 0:02:24.6]} 10... Nbd7 {[%clk 0:02:32]} 11.
Ne5 {[%clk 0:02:20]} 11... Qe8 {[%clk 0:02:16.3]} 12. Bf4 {[%clk 0:01:40.8]}
12... Bb7 {[%clk 0:02:02.6]} 13. Bd3 {[%clk 0:01:31.1]} 13... Rc8 {[%clk
0:01:35.1]} 14. O-O {[%clk 0:01:17.3]} 14... Nxe5 {[%clk 0:01:30.6]} 15. Bxe5
{[%clk 0:01:18.2]} 15... Nd7 {[%clk 0:01:24.4]} 16. f4 {[%clk 0:00:55]} 16... f5
{[%clk 0:01:01.9]} 17. Rae1 {[%clk 0:00:48.3]} 17... Qg6 {[%clk 0:01:00.7]} 18.
Rf2 {[%clk 0:00:48.2]} 18... Kf7 {[%clk 0:00:49.3]} 19. g4 {[%clk 0:00:40.8]}
19... Nf6 {[%clk 0:00:27.4]} 20. Bxf6 {[%clk 0:00:18.1]} 20... gxf6 {[%clk
0:00:28.3]} 21. Rfe2 {[%clk 0:00:18.6]} 21... Rce8 {[%clk 0:00:19.6]} 22. d5
{[%clk 0:00:16.8]} 22... Qxg4+ {[%clk 0:00:17.3]} 23. Qxg4 {[%clk 0:00:17.2]}
23... fxg4 {[%clk 0:00:18.2]} 24. dxe6+ {[%clk 0:00:08.7]} 24... Ke7 {[%clk
0:00:18.3]} 25. Bf5 {[%clk 0:00:08.9]} 25... Rd8 {[%clk 0:00:18.6]} 26. Bxg4
{[%clk 0:00:08.1]} 26... Rhg8 {[%clk 0:00:18.6]} 27. h3 {[%clk 0:00:05]} 27...
h5 {[%clk 0:00:18.9]} 28. Kf2 {[%clk 0:00:03.8]} 28... hxg4 {[%clk 0:00:19.1]}
29. Re3 {[%clk 0:00:03.5]} 29... gxh3 {[%clk 0:00:18.4]} 30. Rxh3 {[%clk
0:00:04.4]} 30... Rg2+ {[%clk 0:00:18.7]} 31. Ke3 {[%clk 0:00:04.2]} 31... Rg7
{[%clk 0:00:19.6]} 32. f5 {[%clk 0:00:04.4]} 32... Rdg8 {[%clk 0:00:19.6]} 33.
Kd2 {[%clk 0:00:03]} 33... Rg2+ {[%clk 0:00:19.4]} 34. Kc1 {[%clk 0:00:03.6]}
34... R8g7 {[%clk 0:00:18.7]} 35. Rd1 {[%clk 0:00:03.9]} 35... Bc6 {[%clk
0:00:17.8]} 36. Rh8 {[%clk 0:00:03.2]} 36... Rg8 {[%clk 0:00:15.9]} 37. Rh7+
{[%clk 0:00:03.3]} 37... R2g7 {[%clk 0:00:16.3]} 38. Rh6 {[%clk 0:00:03.4]}
38... Be8 {[%clk 0:00:15.7]} 39. Rh2 {[%clk 0:00:02.1]} 39... Rg5 {[%clk
0:00:15.7]} 40. Rhd2 {[%clk 0:00:02.6]} 40... Rxf5 {[%clk 0:00:15.2]} 41. Rd8
{[%clk 0:00:03]} 41... Re5 {[%clk 0:00:14.9]} 42. Rc8 {[%clk 0:00:03.4]} 42...
Rc5 {[%clk 0:00:14]} 43. Rdd8 {[%clk 0:00:02.4]} 43... Rc6 {[%clk 0:00:14.1]}
44. Kd2 {[%clk 0:00:02.4]} 44... Rxe6 {[%clk 0:00:13.7]} 45. c5 {[%clk
0:00:02.9]} 45... bxc5 {[%clk 0:00:13.2]} 46. c4 {[%clk 0:00:03.8]} 46... Rd6+
{[%clk 0:00:13.4]} 47. Rxd6 {[%clk 0:00:04]} 47... cxd6 {[%clk 0:00:14.2]} 48.
Rc7+ {[%clk 0:00:04.3]} 48... Bd7 {[%clk 0:00:14.4]} 49. Ra7 {[%clk 0:00:05.2]}
49... Rg4 {[%clk 0:00:13.7]} 50. Rxa5 {[%clk 0:00:06.1]} 50... Rxc4 {[%clk
0:00:13.7]} 51. Kd3 {[%clk 0:00:06.2]} 51... Ra4 {[%clk 0:00:13.6]} 52. Ra7
{[%clk 0:00:07.1]} 0-1

[Event "*** Titled Tuesday Blitz"]
[Site "Chess.com"]
[Date "2020.11.24"]
[Round "2"]
[White "K_A_S_T_O_R"]
[Black "shnitez"]
[Result "1-0"]
[WhiteElo "2791"]
[BlackElo "2505"]
[TimeControl "180+1"]
[EndTime "10:34:00 PST"]
[Termination "K_A_S_T_O_R won by resignation"]

1. e4 {[%clk 0:03:00.9]} 1... c5 {[%clk 0:02:58.8]} 2. Nf3 {[%clk 0:03:00.6]}
2... e6 {[%clk 0:02:58.9]} 3. d4 {[%clk 0:03:01.1]} 3... cxd4 {[%clk 0:02:59.4]}
4. Nxd4 {[%clk 0:03:01.7]} 4... a6 {[%clk 0:02:59.7]} 5. Bd3 {[%clk 0:03:01.6]}
5... Bc5 {[%clk 0:02:58.8]} 6. Nb3 {[%clk 0:03:01.1]} 6... Be7 {[%clk 0:02:58]}
7. Qg4 {[%clk 0:03:00.3]} 7... g6 {[%clk 0:02:57.7]} 8. Qe2 {[%clk 0:03:00.6]}
8... d6 {[%clk 0:02:56.3]} 9. Na3 {[%clk 0:02:59.7]} 9... Nc6 {[%clk 0:02:48]}
10. Nc4 {[%clk 0:02:58.3]} 10... b5 {[%clk 0:02:37.1]} 11. Ne3 {[%clk
0:02:55.9]} 11... Ne5 {[%clk 0:02:29.7]} 12. a4 {[%clk 0:02:48.9]} 12... bxa4
{[%clk 0:02:12.8]} 13. Rxa4 {[%clk 0:02:47.3]} 13... Nxd3+ {[%clk 0:02:11.7]}
14. Qxd3 {[%clk 0:02:43.1]} 14... Nf6 {[%clk 0:02:09]} 15. Bd2 {[%clk
0:02:37.2]} 15... O-O {[%clk 0:01:50.7]} 16. f3 {[%clk 0:02:36.1]} 16... Qd7
{[%clk 0:01:29.9]} 17. Ra5 {[%clk 0:02:31.6]} 17... Bd8 {[%clk 0:01:19.7]} 18.
Ra3 {[%clk 0:02:30.9]} 18... Bb7 {[%clk 0:01:01.3]} 19. Bc3 {[%clk 0:02:08]}
19... d5 {[%clk 0:00:45.6]} 20. Nc5 {[%clk 0:02:01.2]} 20... Qc6 {[%clk
0:00:40.2]} 21. Nxb7 {[%clk 0:01:55]} 21... Qxb7 {[%clk 0:00:41.1]} 22. exd5
{[%clk 0:01:37.3]} 22... Nxd5 {[%clk 0:00:37.4]} 23. Nxd5 {[%clk 0:01:37.2]}
23... exd5 {[%clk 0:00:27.6]} 24. Qd4 {[%clk 0:01:35.4]} 24... Re8+ {[%clk
0:00:26.7]} 25. Kd1 {[%clk 0:01:34.8]} 25... f6 {[%clk 0:00:21.9]} 26. Re1
{[%clk 0:01:33.4]} 26... Rxe1+ {[%clk 0:00:18.7]} 27. Kxe1 {[%clk 0:01:27.5]}
27... Be7 {[%clk 0:00:18.5]} 28. Ra5 {[%clk 0:01:23.6]} 28... Rd8 {[%clk
0:00:18]} 29. Kd1 {[%clk 0:01:16.8]} 29... Kf7 {[%clk 0:00:17.1]} 30. Kc1 {[%clk
0:01:13]} 30... Rd7 {[%clk 0:00:16]} 31. Qd3 {[%clk 0:01:11.3]} 31... Rd6 {[%clk
0:00:14.8]} 32. b3 {[%clk 0:01:09.3]} 32... Bd8 {[%clk 0:00:14.2]} 33. Ra4
{[%clk 0:01:07.8]} 33... Qc6 {[%clk 0:00:11.8]} 34. Kb2 {[%clk 0:01:06.9]} 34...
Be7 {[%clk 0:00:07.4]} 35. Rh4 {[%clk 0:01:06.3]} 35... h5 {[%clk 0:00:06.7]}
36. g4 {[%clk 0:01:03.8]} 36... f5 {[%clk 0:00:07.1]} 37. Rh3 {[%clk 0:01:02.4]}
37... d4 {[%clk 0:00:06.4]} 38. Bd2 {[%clk 0:01:01.3]} 38... fxg4 {[%clk
0:00:05.4]} 39. fxg4 {[%clk 0:01:01.3]} 39... Rd5 {[%clk 0:00:04.1]} 40. gxh5
{[%clk 0:00:59.9]} 40... gxh5 {[%clk 0:00:04.7]} 41. Qh7+ {[%clk 0:00:58.4]}
41... Ke8 {[%clk 0:00:05]} 42. Rxh5 {[%clk 0:00:58.6]} 42... Rxh5 {[%clk
0:00:04.1]} 43. Qxh5+ {[%clk 0:00:58.4]} 43... Kd8 {[%clk 0:00:04.7]} 44. Qh8+
{[%clk 0:00:54.4]} 44... Kd7 {[%clk 0:00:04.6]} 45. Qxd4+ {[%clk 0:00:53.2]}
45... Kc8 {[%clk 0:00:05.1]} 46. Bc3 {[%clk 0:00:50.7]} 46... Kb7 {[%clk
0:00:04.1]} 47. h4 {[%clk 0:00:49]} 47... Bc5 {[%clk 0:00:03.3]} 48. Qc4 {[%clk
0:00:47.8]} 48... Qd6 {[%clk 0:00:03]} 49. Qe4+ {[%clk 0:00:45.7]} 49... Kb6
{[%clk 0:00:02.8]} 50. h5 {[%clk 0:00:45]} 50... Kb5 {[%clk 0:00:02.8]} 51. Ka2
{[%clk 0:00:38.6]} 51... a5 {[%clk 0:00:03]} 52. Qa4+ {[%clk 0:00:37.5]} 52...
Kb6 {[%clk 0:00:03.4]} 53. Bxa5+ {[%clk 0:00:37.5]} 53... Kb7 {[%clk 0:00:04.3]}
54. Qb5+ {[%clk 0:00:37.3]} 54... Kc8 {[%clk 0:00:04.8]} 55. Qc4 {[%clk
0:00:36.3]} 55... Kb7 {[%clk 0:00:04.4]} 56. b4 {[%clk 0:00:35.1]} 56... Ba7
{[%clk 0:00:04.2]} 57. Qe4+ {[%clk 0:00:33]} 57... Ka6 {[%clk 0:00:03.8]} 58.
Kb3 {[%clk 0:00:32.3]} 58... Qg3+ {[%clk 0:00:02.7]} 59. Qd3+ {[%clk 0:00:31.9]}
59... Qxd3+ {[%clk 0:00:01.3]} 60. cxd3 {[%clk 0:00:32.8]} 1-0